Cogmind - Beta 16.1 @@@ ROGUE MODE // 2026.02.13 @ 01:51:42 Player: alice_fexa Result: Escaped! Performance ------------- Evolutions (9) 4500 Regions Visited (17) 3400 Robots Destroyed (470) 2350 Value Destroyed (29473) 29473 Prototype IDs (204) 4080 Alien Tech Used (4) 800 Bonus (51617) 51617 TOTAL SCORE: 96220 Bonus ------- Triggered High Security 500 High Alert Combat Kills 18106 Follower Combat Kills 919 Hunted by Unchained 500 Registered with UFD 300 Met Optimus in HQ 500 Met Warlord at Base 500 MAIN.C Attacked Warlord 500 Warlord Defense Kills 1298 Destroyed Superfortress 15000 Met Optimus at Protoforge 1000 Executed Drillbomb Mission 10000 Win 3000 Friendly Fire -506 Cogmind --------- Core Integrity 1533/1600 Matter 300/300 Energy 480/1140 System Corruption 2% Temperature Cool (6) Movement Hovering (24) Location To Epsilon Eridani Parts ------- > --- POWER (2) -------- Concept Zero-point Core Concept Zero-point Core > --- PROPULSION (8) --- Cooled Linear Gravjet Cooled Linear Gravjet Gravjet Array Gravjet Array Gravjet Array > --- UTILITY (13) ----- Concept Thermoelectric Network Concept Antigrav Storage Unit Concept Chromion Battery Experimental Active Sensor Suite Concept Weapon Articulator Concept Core Analysis Suite Mini Quantum Capacitor Advanced Transmission Jammer Experimental Reaction Control System Medium Regenerative Plating Concept Energy Mantle A0-MCA's Component Scanner > --- WEAPON (2) ------- Concept Plasma Driver Experimental Jetlance > --- INVENTORY (25) --- Gravjet Array Concept Combat Aerolev Unit Concept Combat Aerolev Unit Concept Combat Aerolev Unit Concept Thermoelectric Network Concept NT7 Matterbank (750) Active Sensor Suite Mini Quantum Capacitor Advanced Transmission Jammer Concept Energy Mantle Concept Matter Streamer Concept Matter Streamer Crosscalibrator Concept Plasma Driver Concept Plasma Driver Concept XC Strikerail Concept XC Strikerail Concept Miniperforator Ragnarok Missile Launcher Concept Smart ZDS Concept Smart ZDS Peak State ------------ > --- POWER ------------ Concept Zero-point Core Concept Zero-point Core > --- PROPULSION ------- Cooled Linear Gravjet Cooled Linear Gravjet Gravjet Array Gravjet Array Gravjet Array > --- UTILITY ---------- Concept Thermoelectric Network Concept Antigrav Storage Unit Experimental Active Sensor Suite Concept Weapon Articulator Concept Core Analysis Suite Mini Quantum Capacitor Advanced Transmission Jammer Experimental Reaction Control System Medium Regenerative Plating Concept Energy Mantle Ghost Barrier A0-MCA's Component Scanner > --- WEAPON ----------- Concept Plasma Driver Concept XC Strikerail > --- INVENTORY -------- Gravjet Array Concept Combat Aerolev Unit Concept Combat Aerolev Unit Concept Combat Aerolev Unit Concept Thermoelectric Network Concept Chromion Battery Concept NT7 Matterbank Active Sensor Suite Mini Quantum Capacitor Advanced Transmission Jammer Concept Energy Mantle Concept Matter Streamer Concept Matter Streamer Crosscalibrator Concept Plasma Driver Concept Plasma Driver Concept XC Strikerail Concept Miniperforator Ragnarok Missile Launcher Concept Smart ZDS Concept Smart ZDS Experimental Jetlance [Rating: 292] Favorites ----------- Power Micro Fission Core Engine Improved Ion Engine Power Core Micro Fission Core Reactor Micro Antimatter Reactor Propulsion Cooled Nuclear Pulse Thruster Treads Improved Treads Wheel Compact Wheel Hover Unit Gravjet Array Flight Unit Cooled Nuclear Pulse Thruster Utility Large Storage Unit Device Advanced Sensor Array Storage Large Storage Unit Processor Advanced Melee Analysis Suite Hackware Advanced Hacking Suite Protection Medium Regenerative Plating Weapon Power Maul Energy Gun Particle Gun Energy Cannon Heavy Plasma Cannon Ballistic Gun Concept XC Strikerail Ballistic Cannon Concept Miniperforator Launcher Concept Smart ZDS Special Weapon Improved Plasma Cutter Impact Weapon Power Maul Slashing Weapon Chainsword Piercing Weapon Lance Special Melee Weapon Improved Datajack Build | -11 -10 -10 -7 -7 -5 -5 -4 -4 -4 -4 -3 -3 -3 -2 -2 -2 -1 ------- Run | Yrd Mat Sub Rec Scr Fac Ext Fac Upp Upp War Pro Res Qua Res Tes Frg Acc Slots Evolved 18 | . . . . . 10 . 2 . . . . 2 . 2 . . 2 Power 1 | . . . . . 1 . . . . . . . . . . . . Propulsion 6 | . . . . . 4 . 1 . . . . 1 . . . . . Utility 11 | . . . . . 5 . 1 . . . . 1 . 2 . . 2 Weapon . | . . . . . . . . . . . . . . . . . . Parts Attached 198 | 7 16 1 12 7 33 4 29 2 . 6 1 8 4 5 5 51 7 Power 26 | 1 2 . 3 2 5 . 5 1 . . . 1 1 . . 4 1 Engine 8 | 1 2 . 3 1 1 . . . . . . . . . . . . Core 12 | . . . . 1 4 . 4 . . . . . . . . 2 1 Reactor 6 | . . . . . . . 1 1 . . . 1 1 . . 2 . Propulsion 45 | 2 5 . 5 . 6 . 6 . . 2 . 3 1 1 2 10 2 Treads 9 | 2 4 . 3 . . . . . . . . . . . . . . Leg . | . . . . . . . . . . . . . . . . . . Wheel 3 | . 1 . 2 . . . . . . . . . . . . . . Hover 9 | . . . . . . . . . . . . . . . . 7 2 Flight 24 | . . . . . 6 . 6 . . 2 . 3 1 1 2 3 . Utility 82 | 2 2 . 1 2 19 1 12 1 . 2 . 4 . 4 2 27 3 Device 40 | 1 1 . 1 1 8 . 8 1 . . . . . 2 1 14 2 Storage 8 | 1 1 . . 1 1 . 1 . . . . 1 . . . 1 1 Processor 19 | . . . . . 4 . 3 . . 1 . . . 2 . 9 . Hackware 12 | . . . . . 6 1 . . . 1 . 3 . . 1 . . Protection 3 | . . . . . . . . . . . . . . . . 3 . Artifact . | . . . . . . . . . . . . . . . . . . Weapon 45 | 2 7 1 3 3 3 3 6 . . 2 1 . 2 . 1 10 1 Energy Gun 6 | 1 3 . 1 . . . . . . . . . . . 1 . . Energy Cannon 6 | . . 1 . . 1 . 1 . . . . . 1 . . 2 . Ballistic Gun 8 | 1 2 . 2 . . . . . . . . . . . . 3 . Ballistic Cannon 7 | . . . . . . 3 2 . . . . . . . . 2 . Launcher 6 | . 2 . . . . . 1 . . . 1 . . . . 1 1 Special Weapon 1 | . . . . . . . . . . 1 . . . . . . . Impact Weapon 2 | . . . . . 1 . 1 . . . . . . . . . . Slashing Weapon 1 | . . . . 1 . . . . . . . . . . . . . Piercing Weapon 4 | . . . . . 1 . . . . . . . 1 . . 2 . Special Melee Weapon 4 | . . . . 2 . . 1 . . 1 . . . . . . . Unidentified Prototypes 7 | . . . . . 1 . 3 . . . . . 2 . . 1 . Parts Lost 30 | . 3 . 8 . . . 4 . . . . . 1 . 2 11 1 Power 5 | . 1 . 1 . . . 2 . . . . . . . . . 1 Propulsion 8 | . 1 . 4 . . . 1 . . . . . . . . 2 . Utility 14 | . . . 2 . . . 1 . . . . . 1 . 2 8 . Weapon 3 | . 1 . 1 . . . . . . . . . . . . 1 . Highest Loss Streak 5 | . 1 . 5 . . . 2 . . . . . 1 . 2 3 1 To Critical Strikes . | . . . . . . . . . . . . . . . . . . Average Backups 15 | 3 9 14 11 12 14 15 14 14 14 14 14 13 13 14 13 19 21 Power 1 | . 1 2 1 1 1 1 . . . . . . 1 1 1 1 . Propulsion 2 | 1 2 2 2 2 1 2 1 1 1 1 2 2 2 3 2 3 4 Utility 5 | . . 1 2 3 4 5 5 7 7 6 6 5 3 3 3 7 8 Weapon 5 | . 4 9 5 4 5 5 4 4 4 4 4 4 3 3 3 6 8 Tool/Special . | . . . . . . . . . . . . . . . . . . Unused Backups 66 | . 8 3 3 6 11 . 4 . . . . . 2 . 2 14 13 Power 8 | . 2 . . 1 2 . 1 . . . . . . . . 2 . Propulsion 16 | . 2 . 2 . 2 . . . . . . . . . 1 5 4 Utility 19 | . 3 . . . 2 . 2 . . . . . 1 . . 4 7 Weapon 20 | . 1 3 1 5 3 . 1 . . . . . 1 . 1 2 2 Tool/Special 3 | . . . . . 2 . . . . . . . . . . 1 . Average Slot Usage (%) 86 | . 99 100 95 99 72 79 81 89 89 89 89 89 89 87 89 86 83 Engine 2 | . 14 14 12 10 3 . . . . . . . . . . . . Core 4 | . . . . 3 5 9 8 5 5 5 5 4 . . . 5 8 Reactor 1 | . . . . . . . . 5 5 5 5 4 8 8 8 2 . Treads 3 | . 27 28 19 . . . . . . . . . . . . . . Wheel 1 | . . . 6 28 . . . . . . . . . . . . . Hover 4 | . . . . . . . . . . . . . . . . 13 20 Flight 11 | . . . . . 10 10 16 26 26 26 26 28 28 25 26 9 . Device 11 | . 14 14 12 12 8 5 9 10 10 5 5 4 3 6 11 15 27 Storage 6 | . 14 14 14 15 5 5 4 5 5 5 5 4 4 4 4 4 4 Processor 12 | . . . . . 14 15 14 15 15 20 21 19 19 20 17 16 8 Hackware 9 | . . . . . 14 25 17 10 10 10 10 13 14 13 11 4 3 Protection 1 | . . . . . . . . . . . . . . . . 3 4 Energy Gun 2 | . 17 24 6 1 . . . . . . . . . . . . . Energy Cannon 1 | . . 3 9 . . . 2 . . . . 3 . 1 3 . 3 Ballistic Gun 1 | . 10 . 12 1 . . . . . . . . . . . 1 . Impact Weapon 1 | . . . . . 4 3 2 5 4 . . 3 3 2 . . . Piercing Weapon 2 | . . . . . 2 1 2 5 5 5 5 1 4 4 4 2 3 Special Melee Weapon 1 | . . . . 12 2 4 1 . . . . . . . . . . Peak Build Rating 292 | 7 14 17 19 22 117 119 136 118 120 127 125 142 152 164 173 278 292 Average Rating 137 | 5 10 14 16 17 102 115 128 116 117 123 125 138 148 157 169 239 288 On Entrance 100 | . 7 14 17 17 22 115 119 117 117 117 125 125 142 150 164 170 272 Avg Prop Armor Cover (%) 2 | . 13 . 13 . . . . . . . . 1 2 2 2 2 2 Naked Turns . | . . . . . . . . . . . . . . . . . . Heaviest Build 113 | 12 34 35 36 34 42 43 52 47 56 53 53 51 52 53 56 111 113 Greatest Support 126 | 40 46 46 46 32 49 48 53 53 53 56 53 54 52 53 62 126 126 Greatest Overweight (x) 11 | . 1 . 11 1 1 1 . . 1 . . . 1 . . 1 1 Average Overweight (x) . | . . . . . . . . . . . . . . . . . . Largest Inventory Capacity 25 | 8 15 15 15 15 15 15 15 15 15 15 15 15 15 15 15 25 25 Average Capacity 16 | 7 10 15 15 15 15 15 15 15 15 15 15 15 15 15 15 21 25 Most Carried 25 | 4 15 15 15 15 15 15 15 15 15 15 15 15 15 15 15 25 25 Average Carried 16 | 3 9 14 14 14 14 15 14 15 15 15 15 14 14 15 14 20 23 Final Capacity 25 | 8 15 15 15 15 15 15 15 15 15 15 15 15 15 15 15 25 25 Final Carried 24 | 4 15 15 15 15 15 15 15 15 15 15 15 15 15 15 15 24 24 Class Distribution -------------------- 41% | Hacker-Scout 14% | Mutant 10% | Wizard-Scout 7% | Hacker-Ninja 6% | Scavenger-Scout 6% | Scavenger-Mutant 3% | Hacker-Sprinter 3% | Scavenger-Sprinter Dominant Class ---------------- Mutant | -10/Materials Mutant | -10/Subcaves Scavenger-Mutant | -7/Recycling Scavenger-Mutant | -7/Scraptown Hacker-Scout | -5/Factory Wizard-Scout | -5/Extension Hacker-Scout | -4/Factory Hacker-Scout | -4/Upper Caves Hacker-Scout | -4/Upper Caves Hacker-Scout | -4/Warlord Hacker-Scout | -3/Proximity Caves Hacker-Scout | -3/Research Hacker-Scout | -3/Quarantine Hacker-Scout | -2/Research Hacker-Ninja | -2/Testing Hacker-Scout | -2/Protoforge Hacker-Ninja | -1/Access Resources | -11 -10 -10 -7 -7 -5 -5 -4 -4 -4 -4 -3 -3 -3 -2 -2 -2 -1 ----------- Run | Yrd Mat Sub Rec Scr Fac Ext Fac Upp Upp War Pro Res Qua Res Tes Frg Acc Matter Collected 29182 | 277 536 65 279 90 690 1116 710 50 28 774 46 150 302 40 70 23554 405 Remotely 18921 | . . . 10 . . . . . . . . . . . . 18911 . Salvage Created 16760 | 163 837 16 785 . 1295 1152 1169 . 60 605 45 409 802 216 483 6341 2382 Parts 799 | 13 43 10 24 . 61 30 63 . 1 29 5 12 26 7 22 337 116 Haulers Intercepted 14 | . 1 . . . 3 1 2 . . . . 3 1 2 1 . . Recyclers Shooed 6 | . 1 . 1 . 2 1 . . . . . . 1 . . . . Parts Field Recycled . | . . . . . . . . . . . . . . . . . . Retrieved Matter . | . . . . . . . . . . . . . . . . . . Parts Self-Destructed 22 | . . 18 . . . . . . 2 . 2 . . . . . . Prevented . | . . . . . . . . . . . . . . . . . . Parts Restored 17 | . . . . . . . . . . . . . . . . 17 . Faulty 17 | . . . . . . . . . . . . . . . . 17 . Kills | -11 -10 -10 -7 -7 -5 -5 -4 -4 -4 -4 -3 -3 -3 -2 -2 -2 -1 ------- Run | Yrd Mat Sub Rec Scr Fac Ext Fac Upp Upp War Pro Res Qua Res Tes Frg Acc Combat Hostiles Destroyed 358 | . 21 5 4 . 15 13 13 . 1 9 3 1 5 . 3 234 31 Melee 44 | . . . . . 5 2 10 . . . . 1 5 . 3 16 2 Guns 33 | . 10 . 2 . . . . . . . . . . . . 21 . Cannons 94 | . . . 2 . . 10 2 . 1 9 . . . . . 48 22 AOE 183 | . 11 5 . . 10 . 1 . . . 3 . . . . 149 4 Classes Destroyed 31 | 2 7 1 1 . 1 2 1 . . 4 . . . . . 11 1 Worker 5 | . 1 . . . 1 . 1 . . . . 1 . . . . 1 Builder 2 | . . . . . . 1 . . . . . . . 1 . . . Tunneler 4 | 3 . . . . . . . . . . . . . . . . 1 Hauler 14 | . 1 . . . 3 1 2 . . . . 3 1 2 1 . . Recycler 21 | 1 3 . 8 . 3 3 1 . . . . . 2 . . . . Carrier 3 | . . . . . . . . . . . . . . . . 3 . Mechanic 14 | . . . . . . . . . . 1 . . . . . 12 1 Operator 9 | . 1 . . . 1 1 1 . . . . . 1 . 1 2 1 Drone 4 | . . . . . . . . . . . . . . . . 4 . Turret 2 | . . 2 . . . . . . . . . . . . . . . Watcher 33 | . 2 . . . 6 1 4 . . . . 1 3 . 3 7 6 Swarmer 62 | . 9 5 . . 7 3 . . . . 3 . . . . 26 9 Cutter 5 | . . . . . . . 2 . . . . . . . . . 3 Saboteur 8 | . . . . . . . . . . . . . . . . 8 . Grunt 61 | . 11 . . . . 5 . . . 4 . . . . . 35 6 Brawler 8 | . . . . . . . . . . . . . . . . 8 . Duelist 8 | . . . . . . . . . . . . . . . . 8 . Protector 14 | . . . . . . . . . . 3 . . . . . 11 . Researcher 3 | . . . . . . . . . . . . . . . . 3 . Sentry 27 | . . . 4 . . 4 . . . . . . . . . 12 7 Specialist 1 | . . . . . . . . . . . . . . . . 1 . Hunter 28 | . . . . . . 1 2 . . . . . . . . 24 1 Programmer 43 | . . . . . 8 . 9 . 1 . . 1 5 . 3 15 1 Heavy 2 | . . . . . . . . . . . . . . . . . 2 Hotshot 2 | . . . . . . . . . . . . . . . . 2 . Decapitator 11 | . . . . . . . . . . . . . . . . 11 . Immortal 6 | . . . . . . . . . . . . . . . . 6 . Striker 27 | . . . . . . . . . . . . . . . . 26 1 Executioner 36 | . . . . . . . . . . 2 . . . . . 33 1 Alpha 7 2 | . . . . . . . . . . . . . . . . 2 . V-Series 2 | . . . . . . . . . . . . . . . . 2 . Subdweller 1 | . 1 . . . . . . . . . . . . . . . . Elite 1 | . . . . . . . . . . . . . . . . 1 . Mutant 1 | . . . . . . . . . . 1 . . . . . . . Best Kill Streak 22 | 4 6 6 4 . 8 3 3 . 1 2 3 2 2 1 2 22 7 Combat Bots Only 20 | . 6 4 2 . 7 3 3 . 1 2 3 1 2 . 2 20 6 Max Kills in Single Turn 5 | 1 3 2 1 . 2 2 1 . 1 1 2 1 1 1 1 5 4 Gunslinging . | . . . . . . . . . . . . . . . . . . Exploded 5 | . 3 2 . . 2 . 1 . . . 2 . . . . 5 4 Melee 1 | . . . . . 1 1 1 . . . . 1 1 . 1 1 1 Uniques/NPCs Destroyed . | . . . . . . . . . . . . . . . . . . Combat | -11 -10 -10 -7 -7 -5 -5 -4 -4 -4 -4 -3 -3 -3 -2 -2 -2 -1 -------- Run | Yrd Mat Sub Rec Scr Fac Ext Fac Upp Upp War Pro Res Qua Res Tes Frg Acc Hostile Shots Fired 1005 | . 68 49 225 . 102 37 77 . . 6 9 4 35 15 34 283 61 Missed 437 | . 27 17 75 . 45 14 39 . . 4 4 2 16 7 16 138 33 Hits 568 | . 41 32 150 . 57 23 38 . . 2 5 2 19 8 18 145 28 Melee 14 | . . . . . . . 3 . . . . . . . . 8 3 Projectile 554 | . 41 32 150 . 57 23 35 . . 2 5 2 19 8 18 137 25 AOE 3 | . . . . . . . 2 . . 1 . . . . . . . Critical Strikes 28 | . 1 . . . 3 . 3 . . . 1 . 1 . 1 17 1 Part Disruptions 2 | . . . . . . . . . . . . 1 1 . . . . Damage Taken 10817 | 32 666 222 1112 . 1115 496 1328 . . 96 91 48 451 271 370 3884 635 Core 1757 | . 35 20 188 . 96 83 138 . . . 45 25 147 114 24 775 67 Absorbed by Shields 1908 | . . . . . . . . . . . . . . . . 1552 356 Regen/Repaired (Parts) 1181 | . . . . . 106 . 30 . . . . . 47 46 . 719 233 Core Remaining (%) 67 | 100 . . . 2 . 82 . . . . 84 . 74 . . 32 95 Volleys Fired 955 | 7 65 15 36 . 20 79 61 . 1 83 2 26 6 6 12 438 98 Largest 2 | 2 2 2 2 . 1 1 1 . 1 1 1 1 1 1 1 2 1 Hottest 140 | 60 130 130 133 . 90 51 90 . 56 56 49 90 113 113 113 140 140 Shots Fired 1060 | 14 120 19 68 . 20 79 62 . 1 83 2 26 6 6 13 443 98 Gun 388 | 14 110 8 50 . . . . . . . . . . . . 206 . Cannon 519 | . . 4 18 . 7 79 59 . 1 83 . 26 6 6 13 121 96 Launcher 153 | . 10 7 . . 13 . 3 . . . 2 . . . . 116 2 Special . | . . . . . . . . . . . . . . . . . . Kinetic 531 | 7 62 . 30 . . 79 4 . 1 83 . . 2 . . 263 . Thermal 339 | . 18 12 38 . 7 . 55 . . . . 26 4 6 13 64 96 Explosive 150 | . 10 7 . . 13 . . . . . 2 . . . . 116 2 Electromagnetic 40 | 7 30 . . . . . 3 . . . . . . . . . . Robot Hit Streak 52 | 2 16 7 12 . 5 10 6 . 3 11 . 1 . . . 52 16 Robot Miss Streak 6 | 2 5 1 3 . 1 2 1 . . 6 1 . . . . 4 2 Penetration Max 2 | . . . . . . 1 . . . 2 . . . . . 2 1 Secondary Targets . | . . . . . . . . . . . . . . . . . . Capacitor 100 | . . . . . . . . . . . . . . . . 5 95 Shots Hit Robots 787 | 5 59 7 57 . 52 74 39 . 1 62 . 8 29 5 22 299 68 Core Hits 760 | 5 44 14 42 . 47 21 26 . 1 17 3 4 7 2 7 478 42 Critical Kills 93 | . . . . . 1 12 2 . 1 10 . . . . . 63 4 Critical Parts Destroyed 131 | . . . . . 3 25 1 . . 34 . 1 1 1 . 65 . Critical Strikes 295 | 1 . . . . 4 43 5 . 1 52 . 2 3 1 1 176 6 Meltdown 4 | . . . . . . . . . . . . . . . . . 4 Destroy 265 | . . . . . . 41 3 . 1 52 . . . . . 168 . Corrupt 1 | 1 . . . . . . . . . . . . . . . . . Smash 9 | . . . . . 4 2 . . . . . 1 1 1 . . . Impale 16 | . . . . . . . 2 . . . . 1 2 . 1 8 2 Melee Attacks 471 | . . . . . 103 28 90 . . 19 4 21 58 13 42 85 8 Impact 110 | . . . . . 36 17 20 . . . . 16 16 5 . . . Slashing 2 | . . . . . 2 . . . . . . . . . . . . Piercing 337 | . . . . . 63 4 70 . . 6 4 5 42 8 42 85 8 Sneak Attacks 71 | . . . . . 11 9 5 . . 13 . 5 6 3 3 16 . Combat Hostiles 1 | . . . . . . . . . . . . . . . . 1 . Follow-up Attacks 11 | . . . . . 4 . 2 . . . . . 5 . . . . Damage Inflicted 95752 | 106 1546 359 993 . 3362 1977 1969 . 26 1385 367 678 2013 464 1529 71811 7167 Guns 7904 | 74 638 91 683 . . . . . . . . . . . . 6418 . Cannons 10732 | . . . 310 . 95 958 164 . 26 1385 . 35 . . . 1394 6365 Explosions 64165 | 32 908 268 . . 844 . 176 . . . 367 . . . . 60895 675 Melee 12951 | . . . . . 2423 1019 1629 . . . . 643 2013 464 1529 3104 127 Ramming . | . . . . . . . . . . . . . . . . . . Kinetic 9459 | 12 284 . 416 . . 958 58 . 26 1385 . . . . . 6320 . Thermal 9036 | 32 243 91 577 . 95 . 106 . . . . 35 . . . 1492 6365 Explosive 63869 | . 820 268 . . 844 . . . . . 367 . . . . 60895 675 Electromagnetic 437 | 62 199 . . . . . 176 . . . . . . . . . . Impact 3828 | . . . . . 1035 762 313 . . . . 599 767 352 . . . Slashing 115 | . . . . . 115 . . . . . . . . . . . . Piercing 9008 | . . . . . 1273 257 1316 . . . . 44 1246 112 1529 3104 127 Highest Corruption 11 | . . . . . 8 8 4 . . . . 2 8 . 4 11 2 Average Corruption 4 | . . . . . 4 8 2 . . . . 2 5 . 3 4 2 Corruption Purged 32 | . . . . . 2 . 9 . . . . . . . . 21 . Corruption Blocked . | . . . . . . . . . . . . . . . . . . Effects 186 | . . . . . 23 54 32 . . . . . 27 . 3 44 3 Message Errors 47 | . . . . . 6 12 5 . . . . . 7 . . 16 1 Matter Fused 50 | . . . . . 6 14 9 . . . . . 9 . . 11 1 Heat Flow Errors 29 | . . . . . 6 8 8 . . . . . 4 . 1 2 . Energy Discharges 14 | . . . . . 2 3 3 . . . . . . . . 6 . Parts Rejected 3 | . . . . . . 1 . . . . . . . . . 2 . Parts Fused 2 | . . . . . . 2 . . . . . . . . . . . Data Loss (minor) 24 | . . . . . 3 9 4 . . . . . 4 . 1 3 . Data Loss (major) 7 | . . . . . . 1 1 . . . . . 2 . . 2 1 Misfires 2 | . . . . . . . 1 . . . . . . . 1 . . Alerts 7 | . . . . . . 4 1 . . . . . 1 . . 1 . Weapon Failures 1 | . . . . . . . . . . . . . . . . 1 . Overload Shots . | . . . . . . . . . . . . . . . . . . Overflow Damage 10941 | . 61 . 11 . 532 364 237 . . 14 52 140 868 138 211 7819 494 Projectiles 519 | . . . 11 . . . . . . 14 . . . . . . 494 Explosions 7637 | . 61 . . . 15 . . . . . 52 . . . . 7509 . Melee 2785 | . . . . . 517 364 237 . . . . 140 868 138 211 310 . Knockbacks 28 | . . . . . 3 4 . . . 2 . . 1 . . 18 . Impact 8 | . . . . . 3 4 . . . . . . 1 . . . . Kinetic 18 | . . . . . . . . . . 2 . . . . . 16 . Secondary 2 | . . . . . . . . . . . . . . . . 2 . Self-Inflicted Damage 221 | 32 142 23 . . 24 . . . . . . . . . . . . Shots 6 | 1 3 1 . . 1 . . . . . . . . . . . . Rammed . | . . . . . . . . . . . . . . . . . . Targets Rammed . | . . . . . . . . . . . . . . . . . . Kicked . | . . . . . . . . . . . . . . . . . . Crushed . | . . . . . . . . . . . . . . . . . . Highest Temperature 462 | 40 163 . 462 . 232 293 311 97 89 171 54 180 272 263 359 262 223 Average Temperature 75 | 19 48 . 173 . 84 91 58 32 34 38 16 66 97 83 80 91 152 Received Heat Transfer 859 | . 153 30 306 . . 99 42 . . . . . . 36 . 169 24 Thermoelectric Energy+ 3080 | . . . . . . . . . . . . . . . . . 3080 Effects 17 | . . . 2 . . 6 1 . . . . . . . . . 8 Shutdowns 1 | . . . 1 . . . . . . . . . . . . . . Energy Bleed 3 | . . . . . . . 1 . . . . . . . . . 2 Interference 12 | . . . . . . 6 . . . . . . . . . . 6 Short Circuit 1 | . . . 1 . . . . . . . . . . . . . . Siege Activations . | . . . . . . . . . . . . . . . . . . Martial Activations . | . . . . . . . . . . . . . . . . . . Shielding Activations . | . . . . . . . . . . . . . . . . . . Robots Disrupted . | . . . . . . . . . . . . . . . . . . Combat Hostiles . | . . . . . . . . . . . . . . . . . . Robots Corrupted 13 | . . . . . 3 3 2 . . . . 2 3 . . . . Combat Hostiles 1 | . . . . . . 1 . . . . . . . . . . . Parts Fried 21 | . . . . . 6 2 2 . . . . 5 6 . . . . Impact Corruptions 48 | . . . . . 12 15 3 . . . . 5 10 3 . . . Robots Melted 4 | . . . . . . . . . . . . . . . . . 4 Combat Hostiles 3 | . . . . . . . . . . . . . . . . . 3 Parts Melted 16 | . 2 . 5 . . . . . . . . . . . . . 9 Heat Transferred 8039 | 50 420 222 1221 . 150 . 150 . . . . 50 . . . 1976 3800 Parts Sabotaged . | . . . . . . . . . . . . . . . . . . Parts Stolen . | . . . . . . . . . . . . . . . . . . Parts Stripped . | . . . . . . . . . . . . . . . . . . Power Chain Reactions 1 | 1 . . . . . . . . . . . . . . . . . Alert | -11 -10 -10 -7 -7 -5 -5 -4 -4 -4 -4 -3 -3 -3 -2 -2 -2 -1 ------- Run | Yrd Mat Sub Rec Scr Fac Ext Fac Upp Upp War Pro Res Qua Res Tes Frg Acc Maximum Alert Level 5 | . 1 . . . 1 2 1 . . . . . . . . 5 5 Low Security (%) 58 | 100 97 . 100 . 77 72 57 . . . . 100 100 100 100 21 . Level 1 13 | . 2 . . . 22 26 42 . . . . . . . . 5 . Level 2 5 | . . . . . . . . . . . . . . . . 15 . Level 3 3 | . . . . . . . . . . . . . . . . 10 . Level 4 6 | . . . . . . . . . . . . . . . . 20 . Level 5 8 | . . . . . . . . . . . . . . . . 25 9 High Security 3 | . . . . . . . . . . . . . . . . . 90 Max Security . | . . . . . . . . . . . . . . . . . . Peak Influence 6530 | 10 306 . 60 . 371 446 327 . . . . 82 166 119 52 6530 5261 Initial 3912 | . . . . . . 158 218 . . . . 57 . 86 . . 3912 Average 707 | 1 72 . 11 . 78 149 136 . . . . 25 32 52 14 1482 4700 Influence Increases 14539 | 20 694 200 248 . 896 1047 1017 . 37 455 130 179 482 125 226 7394 1389 Destroy 0b10 Robot/C 7400 | . 400 140 80 . 300 540 260 . 20 300 60 20 100 . 60 4500 620 Destroy 0b10 Robot/NC 620 | 20 40 . 40 . 70 35 45 . . 20 . 25 35 15 25 200 50 Destroy Leader 1188 | . 76 . . . 68 52 82 . 10 . 10 18 28 2 16 674 152 Allied During Kill 205 | . . . . . . 138 . . 7 60 . . . . . . . Trap Triggered on 0b10 20 | . . . . . . . 20 . . . . . . . . . . Successful Hack 405 | . 30 . 37 . 98 2 32 . . . . 21 38 51 23 49 24 Select Force Hacks 90 | . . . 90 . . . . . . . . . . . . . . Disable Machine 885 | . 75 . . . 15 15 60 . . . . . 45 . 45 570 60 Destroy Structure 1181 | . 73 . 1 . 150 10 158 . . . . 50 26 42 57 396 218 Partial Spotted 240 | . . . . . 45 15 60 . . . . 15 15 15 . 60 15 Lose Combat Pursuer 2205 | . . 60 . . 150 240 300 . . 75 60 30 195 . . 945 150 Active Sensor Use 100 | . . . . . . . . . . . . . . . . . 100 Influence Decreases 9278 | 20 673 219 250 . 572 925 1160 263 70 335 172 264 328 279 226 874 2648 Entered New Map 3366 | . . 11 2 . . 166 228 113 8 7 127 28 . 68 . . 2608 Time Decay 4730 | 20 502 208 226 . 394 579 614 150 62 248 45 232 315 136 205 764 30 Search Patrol Dispatched 100 | . . . . . . . 100 . . . . . . . . . . Lost Part 224 | . 21 . 22 . . . 40 . . . . . 8 . 13 110 10 Lost Ally 312 | . . . . . 10 180 24 . . 80 . 2 5 3 8 . . Purge Threat 546 | . 150 . . . 168 . 154 . . . . 2 . 72 . . . Squads Dispatched 95 | . 4 . . . 16 3 20 . . . . 4 3 6 3 10 26 Investigation 32 | . 3 . . . 9 1 9 . . . . 1 1 4 . 3 1 Extermination 22 | . . . . . 5 . 7 . . . . 2 2 1 3 2 . Reinforcement 19 | . 1 . . . 2 2 4 . . . . 1 . 1 . 5 3 Assault 22 | . . . . . . . . . . . . . . . . . 22 Garrison . | . . . . . . . . . . . . . . . . . . Intercept . | . . . . . . . . . . . . . . . . . . Searches Triggered 1 | . . . . . . . 1 . . . . . . . . . . Unchained Authorized 2 | . . . . . . . . . . . . 1 . 1 . . . Construction Impeded 3 | . . . . . 1 1 . . . . . . . . . . 1 Haulers Reinforced . | . . . . . . . . . . . . . . . . . . Active Scanning Responses 1 | . . . . . . . . . . . . . . . . . 1 Cargo Convoy Interrupts . | . . . . . . . . . . . . . . . . . . Stealth | -11 -10 -10 -7 -7 -5 -5 -4 -4 -4 -4 -3 -3 -3 -2 -2 -2 -1 --------- Run | Yrd Mat Sub Rec Scr Fac Ext Fac Upp Upp War Pro Res Qua Res Tes Frg Acc Distress Signals 25 | . . . . . . 3 4 . . 1 . . . . . 13 4 Communications Jammed 23 | . . . . . . . . . . . . . . . . 2 21 Distress Signals 20 | . . . . . . . . . . . . . . . . 2 18 Times Spotted 610 | . 27 7 4 . 39 44 47 . . 85 9 10 26 9 9 250 44 Peak Tracking Total 16 | . 5 5 2 . 8 8 5 . . 13 5 3 7 14 2 16 8 Tactical Retreats 74 | . . 2 . . 4 12 10 . . 4 2 1 3 . . 33 3 Traps | -11 -10 -10 -7 -7 -5 -5 -4 -4 -4 -4 -3 -3 -3 -2 -2 -2 -1 ------- Run | Yrd Mat Sub Rec Scr Fac Ext Fac Upp Upp War Pro Res Qua Res Tes Frg Acc Traps Triggered 35 | . 1 2 . . 1 1 4 . . . . . 1 . . 21 4 Indirectly . | . . . . . . . . . . . . . . . . . . Trap Hack Attempts 39 | . . . . . 30 1 8 . . . . . . . . . . Triggered . | . . . . . . . . . . . . . . . . . . Disarmed 7 | . . . . . 1 . 6 . . . . . . . . . . Reprogrammed 9 | . . . . . 5 . 4 . . . . . . . . . . Reused 2 | . . . . . . . 2 . . . . . . . . . . Traps Extracted 5 | . . . . . 5 . . . . . . . . . . . . Installed . | . . . . . . . . . . . . . . . . . . Triggered 2 | . . . . . . . 2 . . . . . . . . . . Most Traps Carried 5 | . . . . . 5 5 5 5 5 5 5 5 5 5 5 5 . Machines | -11 -10 -10 -7 -7 -5 -5 -4 -4 -4 -4 -3 -3 -3 -2 -2 -2 -1 ---------- Run | Yrd Mat Sub Rec Scr Fac Ext Fac Upp Upp War Pro Res Qua Res Tes Frg Acc Machines Disabled 70 | . 5 4 . . 1 4 4 . . 1 . . 3 . 4 40 4 Max in Single Turn 3 | . 3 1 . . 1 . 1 . . 1 . . 1 . 1 3 1 Garrison Access 12 | . . . . . 4 . 4 . . . . 1 1 1 . 1 . Machines Repaired . | . . . . . . . . . . . . . . . . . . Machines Dismantled 1 | . . . . . . . . . . 1 . . . . . . . Machines Sabotaged . | . . . . . . . . . . . . . . . . . . Overloaded Fab Kills . | . . . . . . . . . . . . . . . . . . Hacking | -11 -10 -10 -7 -7 -5 -5 -4 -4 -4 -4 -3 -3 -3 -2 -2 -2 -1 --------- Run | Yrd Mat Sub Rec Scr Fac Ext Fac Upp Upp War Pro Res Qua Res Tes Frg Acc Machines Accessed 156 | . 10 1 10 . 31 11 29 1 3 3 . 9 13 10 12 11 2 Terminals 89 | . 7 . 6 . 13 10 14 . . . . 6 10 3 10 8 2 Fabricators 4 | . . . . . 2 . 1 . . . . . . . 1 . . Repair Stations 7 | . 1 . . . 3 . 1 . . . . . 1 1 . . . Recycling Units 27 | . 2 . 4 . 6 1 8 . . . . 1 . 4 . 1 . Scanalyzers 9 | . . . . . 3 . 1 . . . . 1 1 1 1 1 . Garrison Access 12 | . . . . . 4 . 4 . . . . 1 1 1 . 1 . Total Hacks 427 | . 31 1 27 . 85 21 90 1 6 14 . 28 36 31 28 24 4 Successful 261 | . 16 1 15 . 52 16 55 1 6 14 . 17 16 23 16 12 1 Failed 165 | . 15 . 12 . 33 5 34 . . . . 11 20 8 12 12 3 Catastrophic 21 | . 1 . 2 . 4 1 7 . . . . 1 . . 2 2 1 Database Lockouts 1 | . . . . . . . 1 . . . . . . . . . . Manual 208 | . 16 . 16 . 35 7 46 . . . . 16 24 15 17 13 3 Terminals 259 | . 20 . 14 . 38 19 56 . . . . 20 31 13 25 19 4 Fabricators 10 | . . . . . 5 . 3 . . . . . . . 2 . . Repair Stations 18 | . 3 . . . 8 . 2 . . . . . 3 2 . . . Recycling Units 75 | . 8 . 13 . 16 2 21 . . . . 4 . 8 . 3 . Scanalyzers 28 | . . . . . 12 . 4 . . . . 3 1 6 1 1 . Garrison Access 15 | . . . . . 6 . 4 . . . . 1 1 2 . 1 . Terminal Hacks 115 | . 4 1 2 . 16 13 21 1 6 14 . 9 7 7 8 6 . Record 9 | . . . . . . . . . 4 . . . . . . 5 . Part Schematic 2 | . . . . . 1 . . . . . . . 1 . . . . Robot Analysis 4 | . . . . . 2 1 1 . . . . . . . . . . Prototype ID Bank 21 | . . . . . 1 . 1 . . 13 . . 1 1 4 . . Open Door 13 | . . . . . 1 7 . 1 2 1 . 1 . . . . . Branch Access Points 4 | . . . . . 1 . 1 . . . . 1 . 1 . . . Machine Index 1 | . . . . . . . 1 . . . . . . . . . . Terminal Index 7 | . . . . . 1 . 1 . . . . 1 1 2 1 . . Recycling Unit Index 2 | . . . . . 1 . . . . . . 1 . . . . . Alert Level 4 | . 1 . . . . 2 . . . . . . . . 1 . . Unreport Threat 7 | . 1 . . . 2 . 2 . . . . 1 . 1 . . . Locate Traps 10 | . 2 . . . 2 1 4 . . . . 1 . . . . . Disarm Traps 1 | . . . . . . . 1 . . . . . . . . . . Reprogram Traps 1 | . . . . . . . 1 . . . . . . . . . . Recall Investigation 1 | . . . . . . . 1 . . . . . . . . . . Recall Reinforcements 1 | . . . . . . . 1 . . . . . . . . . . Registered Components 2 | . . . . . 1 . 1 . . . . . . . . . . Registered Prototypes 1 | . . . . . . . 1 . . . . . . . . . . Zone Layout 23 | . . . 2 . 3 2 4 . . . . 3 4 2 2 1 . Proto ID Catalog 1 | . . 1 . . . . . . . . . . . . . . . Fabricator Hacks 5 | . . . . . 3 . 1 . . . . . . . 1 . . Network Status 2 | . . . . . . . 1 . . . . . . . 1 . . Load Schematic 2 | . . . . . 2 . . . . . . . . . . . . Build 1 | . . . . . 1 . . . . . . . . . . . . Repair Station Hacks 14 | . 2 . . . 6 . 2 . . . . . 2 2 . . . Scan Component 7 | . 1 . . . 3 . 1 . . . . . 1 1 . . . Repair 7 | . 1 . . . 3 . 1 . . . . . 1 1 . . . Recycling Unit Hacks 24 | . 1 . 4 . 3 1 9 . . . . 1 . 4 . 1 . Retrieve Components 24 | . 1 . 4 . 3 1 9 . . . . 1 . 4 . 1 . Scanalyzer 16 | . . . . . 9 . 2 . . . . 1 1 2 1 . . Insert Component 2 | . . . . . . . 1 . . . . . 1 . . . . Retrieve Study 14 | . . . . . 9 . 1 . . . . 1 . 2 1 . . Garrison Access Hacks 12 | . . . . . 4 . 4 . . . . 1 1 1 . 1 . Seal Access 12 | . . . . . 4 . 4 . . . . 1 1 1 . 1 . Unauthorized Hacks 75 | . 9 . 9 . 11 2 16 . . . . 5 5 7 6 4 1 Terminals 50 | . 9 . 6 . 6 1 7 . . . . 4 5 3 5 3 1 Assimilate 9 | . . . . . 1 . 3 . . . . 1 1 1 2 . . Botnet 30 | . 2 . 2 . 5 1 4 . . . . 3 4 2 3 3 1 Operators 1 | . 1 . . . . . . . . . . . . . . . . Skim 10 | . 6 . 4 . . . . . . . . . . . . . . Fabricators 3 | . . . . . 1 . 1 . . . . . . . 1 . . Liberate 2 | . . . . . . . 1 . . . . . . . 1 . . Recompile 1 | . . . . . 1 . . . . . . . . . . . . Repair Stations . | . . . . . . . . . . . . . . . . . . Recycling Units 22 | . . . 3 . 4 1 8 . . . . 1 . 4 . 1 . Tunnel 3 | . . . 3 . . . . . . . . . . . . . . Fedlink 19 | . . . . . 4 1 8 . . . . 1 . 4 . 1 . Scanalyzers . | . . . . . . . . . . . . . . . . . . Garrison Access . | . . . . . . . . . . . . . . . . . . Data Cores Recovered 4 | . . . . . 1 . 1 . . . . . 1 . 1 . . Used . | . . . . . . . . . . . . . . . . . . Hacking Detections 85 | . 8 . 9 . 18 3 14 . . . . 5 8 3 8 7 2 Full Trace Events 7 | . . . 1 . 4 . 1 . . . . . 1 . . . . Feedback Events . | . . . . . . . . . . . . . . . . . . Feedback Blocked 1 | . . . . . . . 1 . . . . . . . . . . Robot Schematics Acquired 3 | . . . . . . . . . . . . . . . . 3 . Robots Built . | . . . . . . . . . . . . . . . . . . Authchips . | . . . . . . . . . . . . . . . . . . Time . | . . . . . . . . . . . . . . . . . . Total Robot Build Rating . | . . . . . . . . . . . . . . . . . . Part Schematics Acquired 11 | . . . . . 1 . . . . . . . 1 . . 9 . Parts Built 1 | . . . . . 1 . . . . . . . . . . . . Authchips 1 | . . . . . 1 . . . . . . . . . . . . Time 35 | . . . . . 35 . . . . . . . . . . . . Total Part Build Rating 6 | . . . . . 6 . . . . . . . . . . . . Part Studies Acquired 14 | . . . . . 9 . 1 . . . . 1 . 2 1 . . Parts Repaired 6 | . . . . . 3 . 1 . . . . . 1 1 . . . Time 237 | . 26 . . . 92 . 56 . . . . . 34 29 . . . Parts Recycled . | . . . . . . . . . . . . . . . . . . Recycled Matter . | . . . . . . . . . . . . . . . . . . Retrieved Matter . | . . . . . . . . . . . . . . . . . . Retrieved Components 58 | . 10 . 17 . 6 2 14 . . . . 3 . 6 . . . Parts Scanalyzed . | . . . . . . . . . . . . . . . . . . Part Schematics Acquired . | . . . . . . . . . . . . . . . . . . Parts Damaged . | . . . . . . . . . . . . . . . . . . Bothacking | -11 -10 -10 -7 -7 -5 -5 -4 -4 -4 -4 -3 -3 -3 -2 -2 -2 -1 ------------ Run | Yrd Mat Sub Rec Scr Fac Ext Fac Upp Upp War Pro Res Qua Res Tes Frg Acc Used RIF Installer . | . . . . . . . . . . . . . . . . . . Robots Hacked 3 | . . . . . 1 1 . . . 1 . . . . . . . Non-combat 1 | . . . . . 1 . . . . . . . . . . . . Combat 2 | . . . . . . 1 . . . 1 . . . . . . . Robot Hacks Applied 3 | . . . . . 1 1 . . . 1 . . . . . . . parse_system 2 | . . . . . . 1 . . . 1 . . . . . . . find_fabricator 1 | . . . . . 1 . . . . . . . . . . . . Relay Couplers Released . | . . . . . . . . . . . . . . . . . . Fabnet Peak Effective % . | . . . . . . . . . . . . . . . . . . Robots Rewired 11 | . . . . . . 6 . . . 5 . . . . . . . Allies Hacked 1 | . . . . . . . . . . . . . . 1 . . . Hacks Repelled . | . . . . . . . . . . . . . . . . . . Allies | -11 -10 -10 -7 -7 -5 -5 -4 -4 -4 -4 -3 -3 -3 -2 -2 -2 -1 -------- Run | Yrd Mat Sub Rec Scr Fac Ext Fac Upp Upp War Pro Res Qua Res Tes Frg Acc Total Allies 33 | . . . . . 1 16 4 . 2 5 . 1 1 1 2 . . Largest Group 7 | . . . . . 1 7 2 . 2 5 1 1 1 1 1 . . Highest-Rated Group 309 | . . . . . 26 309 98 . 92 254 57 10 45 45 45 . . Highest-Rated Ally 159 | . . . . . 26 159 49 . 46 64 57 10 45 45 45 . . Initial UFD Resources 121 | . . . . . 37 55 61 87 87 87 89 89 99 103 121 121 . Total Orders 14 | . . . . . 2 1 2 . . 2 . 2 1 . 4 . . STAY 6 | . . . . . 1 1 1 . . 1 . 1 1 . . . . ROAM 2 | . . . . . . . . . . . . . . . 2 . . FOLLOW 6 | . . . . . 1 . 1 . . 1 . 1 . . 2 . . Ally Attacks 185 | . . . . . . 125 4 . 6 50 . . . . . . . Total Damage 4676 | . . . . . . 2788 161 . 115 1612 . . . . . . . Kills 23 | . . . . . . 14 . . . 9 . . . . . . . Allies Corrupted 1 | . . . . . . . . . . . . . . . 1 . . Allies Melted 6 | . . . . . . 1 1 . . 1 . . . . . 3 . Intel | -11 -10 -10 -7 -7 -5 -5 -4 -4 -4 -4 -3 -3 -3 -2 -2 -2 -1 ------- Run | Yrd Mat Sub Rec Scr Fac Ext Fac Upp Upp War Pro Res Qua Res Tes Frg Acc Active Infowar (turns) 22937 | 41 896 625 294 1262 2611 1773 3133 303 278 957 891 691 1100 341 608 6390 743 Optics 15437 | . . . . . 2611 1755 3133 303 278 957 891 691 1100 341 608 2769 . Sensors 16256 | . . . . . 2342 1633 3121 300 278 957 891 684 993 341 558 4158 . A.S.S. 2643 | . . . . . . . . . . . . . . . . 1909 734 Traps 2601 | . . . . . 221 . 2380 . . . . . . . . . . Seismic 3118 | 41 896 625 294 1262 . . . . . . . . . . . . . Jamming 3665 | . . . . . . . . . . . . . . . 489 2506 670 Robot Analysis Total 4 | . . . . . 2 1 1 . . . . . . . . . . Derelict Logs Recovered 4 | . . 1 . . . . . 1 2 . . . . . . . . Drone Launches . | . . . . . . . . . . . . . . . . . . Drone Recoveries . | . . . . . . . . . . . . . . . . . . Exploration | -11 -10 -10 -7 -7 -5 -5 -4 -4 -4 -4 -3 -3 -3 -2 -2 -2 -1 ------------- Run | Yrd Mat Sub Rec Scr Fac Ext Fac Upp Upp War Pro Res Qua Res Tes Frg Acc Turns Passed 25124 | 137 1665 979 861 1422 2646 1783 3133 303 278 957 891 691 1100 341 608 6586 743 Spaces Moved 31478 | 61 836 411 478 1359 3416 1539 4555 697 826 1110 873 1142 1806 751 1233 9226 1159 Core 4 | 2 . . 2 . . . . . . . . . . . . . . Treads 1539 | 59 788 411 281 . . . . . . . . . . . . . . Legs . | . . . . . . . . . . . . . . . . . . Wheels 1602 | . 48 . 195 1359 . . . . . . . . . . . . . Hover 6614 | . . . . . . . . . . . . . . . . 5455 1159 Flight 21719 | . . . . . 3416 1539 4555 697 826 1110 873 1142 1806 751 1233 3771 . Fastest Speed 11 | 50 95 160 100 100 37 37 26 26 26 24 26 25 25 26 21 11 24 Average Speed 39 | 156 156 160 139 101 37 37 30 26 26 25 26 25 26 26 24 28 31 Slowest Speed 600 | 160 160 160 600 115 80 97 32 26 104 28 26 26 100 26 26 88 112 Overloaded Moves 21 | . . . . . . . . . . . . . . . . 21 . Propulsion Burnouts . | . . . . . . . . . . . . . . . . . . Robots Hopped 53 | . . . . . 13 4 1 . 1 2 2 3 . 3 2 22 . Potential Cave-ins 7 | . . . . . . . 2 . . . . . . . . 2 3 Cave-ins Triggered 1 | . . . . . . . . . . . . . . . . 1 . Teleports 6 | . . . . . . . . . . . . . 2 . . 4 . Exploration Rate (%) 68 | 4 96 24 90 85 72 83 80 88 89 91 70 26 92 25 94 87 41 Regions Visited 17 Branch Regions 11 Pre-discovered Areas 7 | . 1 . 3 . 1 . . . 2 . . . . . . . . Known Exits Taken 13 | . . 1 . . 1 1 1 1 1 1 1 1 1 1 1 1 . Unknown Exits Taken 4 | 1 1 . 1 1 . . . . . . . . . . . . . Scrap Searched 11 | . . . . 4 . . . 2 2 . 3 . . . . . . Spaces Dug 260 | . . 14 . . 53 . 68 . . 2 26 20 12 11 13 25 16 Terrain Destroyed 713 | 5 84 23 . . 87 . 92 . . 7 39 29 16 14 22 208 87 Melee 155 | . . . . . 42 . 43 . . 2 4 12 12 8 9 18 5 Projectile 179 | . . . . . 4 . 49 . . 4 . 17 4 6 13 13 69 AOE 358 | 5 84 23 . . 41 . . . . . 35 . . . . 157 13 Terrain Rammed . | . . . . . . . . . . . . . . . . . . Walls Destroyed . | . . . . . . . . . . . . . . . . . . Machines Disabled . | . . . . . . . . . . . . . . . . . . Actions | -11 -10 -10 -7 -7 -5 -5 -4 -4 -4 -4 -3 -3 -3 -2 -2 -2 -1 --------- Run | Yrd Mat Sub Rec Scr Fac Ext Fac Upp Upp War Pro Res Qua Res Tes Frg Acc Total 42387 | 87 1097 709 607 1414 4603 2612 6104 818 884 1680 1525 1474 2344 862 1466 12606 1495 Wait 8543 | 9 128 273 60 21 932 916 1282 114 57 445 648 260 448 87 160 2503 200 Move 31361 | 60 835 410 477 1358 3389 1530 4552 696 823 1106 868 1135 1805 744 1228 9187 1158 Hop 43 | . . . . . 13 4 1 . 1 1 2 3 . 3 2 13 . Pick Up 191 | 4 25 1 8 10 35 . 15 . . 1 . 4 7 . 6 70 5 Fast Attach 139 | 7 5 . 7 5 18 4 24 3 . 3 . 1 6 5 . 45 6 Attach 59 | . 4 . 3 1 13 . 6 . . . . 2 3 . 2 21 4 Detach 5 | . 2 . 1 . 2 . . . . . . . . . . . . Swap 232 | . 13 6 6 2 21 31 30 1 2 8 1 15 11 2 7 66 10 Drop 245 | . 20 4 9 17 39 4 32 4 . 6 . 7 10 2 7 78 6 Fire 955 | 7 65 15 36 . 20 79 61 . 1 83 2 26 6 6 12 438 98 Melee 439 | . . . . . 91 28 80 . . 19 4 21 48 13 42 85 8 Ram . | . . . . . . . . . . . . . . . . . . Kick . | . . . . . . . . . . . . . . . . . . Crush . | . . . . . . . . . . . . . . . . . . Escape Stasis 128 | . . . . . . 15 13 . . . . . . . . 100 . Rewire . | . . . . . . . . . . . . . . . . . . Trap 39 | . . . . . 30 1 8 . . . . . . . . . . Miscellaneous 8 | . . . . . . . . . . 8 . . . . . . . Route ------- -11/Scrapyard -10/Materials (discovered 6 exits: [*Mat x3] / *Min x2 / *Sub) -10/Subcaves -7/Recycling (discovered 2 exits: *Fac / *Scr) -7/Scraptown (discovered 2 exits: *Fac x2) -5/Factory (discovered 8 exits: *Fac x4 / *Upp x2 / *Ext x2) -5/Extension (discovered 2 exits: *Fac / *Cet) -4/Factory (discovered 6 exits: *Res x3 / *Upp x2 / Arm) -4/Upper Caves -4/Upper Caves (discovered 2 exits: *Res / *War) -4/Warlord -3/Proximity Caves -3/Research (discovered 2 exits: *Qua x2) -3/Quarantine -2/Research (discovered 2 exits: *Tes x2) -2/Testing (discovered 3 exits: *Acc / *Sec / *Frg) -2/Protoforge -1/Access To Epsilon Eridani History --------- Turn | Location | Event 28 | -11/Scrapyard | Discovered new exit (range 16) 138 | -11/Scrapyard | Entered Materials 310 | -10/Materials | Build established: Mutant 677 | -10/Materials | Discovered new exit (range 3) 838 | -10/Materials | Derelicts attacked the area 915 | -10/Materials | Discovered new exit (range 15) 1238 | -10/Materials | Discovered new exit (range 10) 1349 | -10/Materials | Learned 4 Recycling zone layouts 1389 | -10/Materials | Learned 2 Mines zone layouts 1395 | -10/Materials | Learned 4 Subcaves zone layouts 1396 | -10/Materials | Learned Storage trap positions 1398 | -10/Materials | Learned Storage emergency access door positions 1401 | -10/Materials | Learned Storage emergency access door positions 1414 | -10/Materials | Learned location of 1 exit from Storage 1436 | -10/Materials | Identified exit to Mines 1469 | -10/Materials | Discovered new exit (range 15) 1731 | -10/Materials | Discovered new exit (range 6) 1803 | -10/Materials | Entered Subcaves 1803 | -10/Subcaves | Discovered new exit (range 10) 1804 | -10/Subcaves | Approached by a straggling Scientist 1804 | -10/Subcaves | Identified exit to Recycling 2192 | -10/Subcaves | Shifting Twisted Machinery released Flamer 2460 | -10/Subcaves | Learned location of 1 exit from Materials 2544 | -10/Subcaves | Visited 4L-MR0's lab 2561 | -10/Subcaves | Found Flightbrick 2614 | -10/Subcaves | A swath of the cavern ceiling suddenly collapsed 2782 | -10/Subcaves | Entered Recycling 2893 | -7/Recycling | Core integrity fell below 50% 2932 | -7/Recycling | Lost 5 parts (1p2n1u1w) 3383 | -7/Recycling | Core integrity fell below 20% 3419 | -7/Recycling | Lost 3 parts (2n1u) 3551 | -7/Recycling | Discovered new exit (range 15) 3619 | -7/Recycling | Scanned before Scraplab entrance 3633 | -7/Recycling | Entered Scraplab 3641 | -7/Recycling | Discovered new exit (range 2) 3643 | -7/Recycling | Entered Scraptown 3713 | -7/Scraptown | Build established: Scavenger-Mutant 3815 | -7/Scraptown | Discovered new exit (range 11) 3880 | -7/Scraptown | Visited SPCMW 3896 | -7/Scraptown | Visited Spacefarers 4030 | -7/Scraptown | Visited Fellowship of the Rings 4043 | -7/Scraptown | Visited Assassins FH 4076 | -7/Scraptown | Visited Comm Corps 4096 | -7/Scraptown | Visited Symbiants 4122 | -7/Scraptown | Visited Shadow of the Wyrm 4136 | -7/Scraptown | Visited UFD Registry 4136 | -7/Scraptown | Registered with UFD as "Roughroller" 4378 | -7/Scraptown | Visited Curators Association 4409 | -7/Scraptown | Visited Junk Repository 4501 | -7/Scraptown | Visited A0-MCA Data Center 4507 | -7/Scraptown | Given a C+ rating by A0-MCA 4509 | -7/Scraptown | Found A0-MCA's Component Scanner 4542 | -7/Scraptown | Visited LU-1G1's Boring Crew 4630 | -7/Scraptown | Visited Botcube Research 4648 | -7/Scraptown | Visited DA-N13 Charitable Foundation 4652 | -7/Scraptown | Found DCF Scrap (27 items) 4707 | -7/Scraptown | Visited Observation Area 4722 | -7/Scraptown | Visited Scrapoid Pod Storage 4738 | -7/Scraptown | Visited Scrap Suit Storage 4968 | -7/Scraptown | Build established: Mutant 4985 | -7/Scraptown | Met Optimus 4985 | -7/Scraptown | Accepted into 0bPrime 5043 | -7/Scraptown | Discovered new exit (range 3) 5065 | -7/Scraptown | Entered Factory 5065 | -5/Factory | Evolved 10 slots: Power x1, Propulsion x4, Utility x5 5070 | -5/Factory | Attached Flightbrick, gained temporary slots: Utility x3 5252 | -5/Factory | Identified exit to Upper Caves 5252 | -5/Factory | Identified exit to Extension 5854 | -5/Factory | Discovered new exit (range 5) 5856 | -5/Factory | Identified exit to Factory 5929 | -5/Factory | Discovered exit to Factory (range 6) 5960 | -5/Factory | Build established: Hacker-Scout 6111 | -5/Factory | Fabricated Adv. System Shield? 6278 | -5/Factory | Loaded intel: 8 recycling unit locations 6488 | -5/Factory | Learned location of Protoforge (-2) 6524 | -5/Factory | Spotted B-75 Beast 6671 | -5/Factory | Repaired Cld. Nuclear Pulse Thruster 6869 | -5/Factory | Discovered exit to Factory (range 13) 7185 | -5/Factory | Destroyed 7 combat bots 7193 | -5/Factory | Repaired Grenade Launcher+ 7368 | -5/Factory | Discovered exit to Factory (range 5) 7618 | -5/Factory | Repaired Adv. Sensor Array 7646 | -5/Factory | Build established: Wizard-Scout 7711 | -5/Factory | Entered Extension 8561 | -5/Extension | Rescued a captive Derelict 8660 | -5/Extension | Rescued a captive Derelict 8692 | -5/Extension | Rescued a captive Derelict 8693 | -5/Extension | Rescued a captive Derelict 8724 | -5/Extension | Rescued A7 8768 | -5/Extension | Rescued a captive Derelict 8770 | -5/Extension | Rescued a captive Derelict 9091 | -5/Extension | Spotted B-75 Beast 9107 | -5/Extension | Allies destroyed B-75 Beast 9117 | -5/Extension | Spotted B-75 Beast 9149 | -5/Extension | Allies destroyed B-75 Beast 9176 | -5/Extension | Lost 4 allies 9177 | -5/Extension | Rescued a captive Derelict 9267 | -5/Extension | Discovered new exit (range 18) 9267 | -5/Extension | Discovered exit to Factory (range 17) 9300 | -5/Extension | Identified exit to Cetus 9386 | -5/Extension | Rescued a captive Derelict 9387 | -5/Extension | Rescued a captive Derelict 9430 | -5/Extension | Watched by a mysterious "MATRIX" hacker. 9430 | -5/Extension | Loaded intel: 2 recycling unit locations 9485 | -5/Extension | Disrupted transfer network 9494 | -5/Extension | Entered Factory 9494 | -4/Factory | Evolved 2 slots: Propulsion x1, Utility x1 9501 | -4/Factory | Loaded intel: 8 recycling unit locations 9931 | -4/Factory | Repaired Lance+ 9956 | -4/Factory | Central database locked down 10107 | -4/Factory | Discovered new exit (range 15) 10222 | -4/Factory | Spotted B-86 Titan 10309 | -4/Factory | Identified exit to Upper Caves 10309 | -4/Factory | Identified exit to Armory 10311 | -4/Factory | Found Prototype Processor 10311 | -4/Factory | Identified Exp. Signal Interpreter 10467 | -4/Factory | Build established: Hacker-Scout 11646 | -4/Factory | Discovered new exit (range 17) 11744 | -4/Factory | Search patrols dispatched 12264 | -4/Factory | Discovered new exit (range 14) 12310 | -4/Factory | Found Prototype Processor 12310 | -4/Factory | Identified Exp. Melee Analysis Suite 12627 | -4/Factory | Entered Upper Caves 12644 | -4/Upper Caves | Found DCF Scrap (15 items) 12685 | -4/Upper Caves | Learned location of 1 exit from Research 12780 | -4/Upper Caves | Discovered new exit (range 8) 12930 | -4/Upper Caves | Identified exit to Upper Caves 12930 | -4/Upper Caves | Entered another Upper Caves area 12939 | -4/Upper Caves | Discovered new exit (range 8) 12951 | -4/Upper Caves | Learned location of Testing (-2) 12991 | -4/Upper Caves | Entered an active Warlord outpost 12995 | -4/Upper Caves | A Commander dispatched an escort 12997 | -4/Upper Caves | Found DCF Scrap (12 items) 13000 | -4/Upper Caves | Learned Extension emergency access door positions 13000 | -4/Upper Caves | Learned Extension terminal intel 13000 | -4/Upper Caves | Learned Armory garrison access intel 13008 | -4/Upper Caves | Learned Research stockpile data 13177 | -4/Upper Caves | Discovered new exit (range 17) 13181 | -4/Upper Caves | Identified exit to Warlord 13208 | -4/Upper Caves | Entered Warlord 13208 | -4/Warlord | Accompanied by 2 allies 13209 | -4/Warlord | Commander's escort returned to base 13209 | -4/Warlord | Commander's escort returned to base 13265 | -4/Warlord | Visited the Vortex Lab 13287 | -4/Warlord | Warlord's base attacked by MAIN.C 13323 | -4/Warlord | Found Ghost Barrier 13346 | -4/Warlord | Rebuked by Warlord 13588 | -4/Warlord | Warlord forces counterattacked 13656 | -4/Warlord | Spotted Striker 13664 | -4/Warlord | Lost 11 allies 13692 | -4/Warlord | Spotted Striker 13694 | -4/Warlord | Spotted Executioner 13713 | -4/Warlord | Spotted B-86 Titan 13714 | -4/Warlord | Spotted B-90 Cyclops 13765 | -4/Warlord | Discovered new exit (range 14) 13788 | -4/Warlord | Lost 14 allies 13792 | -4/Warlord | Spotted Executioner 13804 | -4/Warlord | Destroyed Executioner 13904 | -4/Warlord | Lost 15 allies 13962 | -4/Warlord | Warlord base infiltrated, sounded retreat 14032 | -4/Warlord | Spotted Executioner 14032 | -4/Warlord | Destroyed Executioner 14034 | -4/Warlord | Spotted Striker 14102 | -4/Warlord | Spotted Striker 14109 | -4/Warlord | Spotted Executioner 14110 | -4/Warlord | Spotted Executioner 14127 | -4/Warlord | Identified exit to Proximity Caves 14165 | -4/Warlord | Entered Proximity Caves 14165 | -3/Proximity Caves | Accompanied by 1 ally 14252 | -3/Proximity Caves | Attracted the attention of an 0b10 checkpoint 14270 | -3/Proximity Caves | Spotted B-86 Titan 14502 | -3/Proximity Caves | Received a Behemoth hack from an annoying Tinkerer 15051 | -3/Proximity Caves | Discovered new exit (range 8) 15055 | -3/Proximity Caves | Identified exit to Research 15056 | -3/Proximity Caves | Entered Research 15056 | -3/Research | Evolved 2 slots: Propulsion x1, Utility x1 15057 | -3/Research | Identified exit to Quarantine 15062 | -3/Research | Loaded intel: 5 recycling unit locations 15383 | -3/Research | Found Gamma Bomb Array 15397 | -3/Research | Spotted B-86 Titan 15501 | -3/Research | Declared boring by mysterious "MATRIX" hacker. 15589 | -3/Research | Unchained authorized (QV-33N) 15747 | -3/Research | Entered Quarantine 15835 | -3/Quarantine | Discovered new exit (range 17) 15858 | -3/Quarantine | Found Alien Artifact 15858 | -3/Quarantine | Identified Hpw. Transdimensional Reconstructor 15858 | -3/Quarantine | Warped through subspace 15895 | -3/Quarantine | Found Alien Artifact 15895 | -3/Quarantine | Identified Dimensional Node Initializer 15895 | -3/Quarantine | Initialized slip node 15899 | -3/Quarantine | Found Dimensional Node Initializer 15905 | -3/Quarantine | Found Hpw. Transdimensional Reconstructor 16038 | -3/Quarantine | Cryocooling Duct disabled 16053 | -3/Quarantine | Ambient heat levels rising (+20) 16053 | -3/Quarantine | Non-combat units ordered to evacuate 16523 | -3/Quarantine | Repaired Mic. Antimatter Reactor+ 16811 | -3/Quarantine | Spotted Alpha 7 16818 | -3/Quarantine | Found Alien Artifact 16819 | -3/Quarantine | Warped through subspace to slip node 16823 | -3/Quarantine | Found Hpw. Transdimensional Reconstructor 16840 | -3/Quarantine | Identified Subatomic Replicator 16847 | -3/Quarantine | Identified exit to Research 16847 | -3/Quarantine | Entered Research 16847 | -2/Research | Evolved 2 slots: Utility x2 16885 | -2/Research | Repaired Cld. Nuclear Pulse Thruster 16902 | -2/Research | Loaded intel: 5 recycling unit locations 16970 | -2/Research | Unchained authorized (QV-33N) 17069 | -2/Research | Discovered new exit (range 6) 17074 | -2/Research | Identified exit to Testing 17143 | -2/Research | Spotted B-90 Cyclops 17188 | -2/Research | Entered Testing 17254 | -2/Testing | Found Ragnarok Missile Launcher 17262 | -2/Testing | Spotted PH-XSC9GU5750 17517 | -2/Testing | Found Warp Gun 17537 | -2/Testing | Discovered new exit (range 15) 17746 | -2/Testing | Spotted Fortress 17793 | -2/Testing | Discovered new exit (range 5) 17793 | -2/Testing | Discovered new exit (range 6) 17794 | -2/Testing | Identified exit to Protoforge 17795 | -2/Testing | Identified exit to Section 7 17796 | -2/Testing | Entered Protoforge 17801 | -2/Protoforge | Spotted Hotshot 17803 | -2/Protoforge | Spotted Hotshot 17871 | -2/Protoforge | Spotted Hotshot 17897 | -2/Protoforge | Spotted Hotshot 17915 | -2/Protoforge | Build established: Hacker-Ninja 18104 | -2/Protoforge | Discovered new exit (range 17) 18107 | -2/Protoforge | Spotted Hotshot 18134 | -2/Protoforge | Spotted B-90 Cyclops 18211 | -2/Protoforge | Spotted Hotshot 18211 | -2/Protoforge | Spotted AP7-3 18211 | -2/Protoforge | Spotted AP7-3 18228 | -2/Protoforge | Spotted Hotshot 18235 | -2/Protoforge | Spotted Hotshot 18278 | -2/Protoforge | Spotted Overlord 18405 | -2/Protoforge | Found Cep. Weapon Articulator 18424 | -2/Protoforge | Found Cep. Antimissile System 18431 | -2/Protoforge | Found Exp. System Purifier 18570 | -2/Protoforge | Spotted EXE-6 18570 | -2/Protoforge | Spotted EXE-6 18579 | -2/Protoforge | UFD initiated attack on Protoforge (Readiness: Maximal) 18579 | -2/Protoforge | Loaded intel: 3 recycling unit locations 18599 | -2/Protoforge | Superfortress began startup sequence 18615 | -2/Protoforge | Optimus greeted in Protoforge 18618 | -2/Protoforge | Spotted Decapitator 18626 | -2/Protoforge | Spotted Decapitator 18650 | -2/Protoforge | Found Exp. Core Analyzer 18652 | -2/Protoforge | Found Cep. XC Strikerail 18686 | -2/Protoforge | Initialized slip node 18688 | -2/Protoforge | Used Subatomic Replicator to create Alien Artifact 18702 | -2/Protoforge | Found Exp. System Purifier 18709 | -2/Protoforge | Identified Supercharged TR 18709 | -2/Protoforge | Warped through subspace to slip node 18710 | -2/Protoforge | Optimus attacked Superfortress 18711 | -2/Protoforge | Spotted Executioner 18713 | -2/Protoforge | Found Exp. Armor Integrity Analyzer 18714 | -2/Protoforge | Spotted Decapitator 18717 | -2/Protoforge | Spotted Immortal 18720 | -2/Protoforge | P-80 Master assimilated allied 02F02-D 18730 | -2/Protoforge | Found Exp. Core Analyzer 18732 | -2/Protoforge | Found Cep. Zero-point Core 18735 | -2/Protoforge | Found Cep. Zero-point Core 18737 | -2/Protoforge | Found Cep. NT7 Matterbank 18741 | -2/Protoforge | Lost 3 parts (1n2u) 18775 | -2/Protoforge | Forge Plexus network access discovered 18791 | -2/Protoforge | Lost 14 allies 18796 | -2/Protoforge | Spotted Striker 18796 | -2/Protoforge | Spotted Striker 18965 | -2/Protoforge | Spotted Executioner 18990 | -2/Protoforge | Build established: Scavenger-Scout 19017 | -2/Protoforge | Spotted Executioner 19018 | -2/Protoforge | Destroyed Executioner 19030 | -2/Protoforge | Spotted Executioner 19035 | -2/Protoforge | Spotted Executioner 19062 | -2/Protoforge | Spotted Executioner 19082 | -2/Protoforge | Lost 8 allies 19138 | -2/Protoforge | Found Crosscalibrator 19141 | -2/Protoforge | Spotted Immortal 19141 | -2/Protoforge | Spotted Immortal 19143 | -2/Protoforge | Spotted Decapitator 19143 | -2/Protoforge | Spotted Decapitator 19143 | -2/Protoforge | Spotted Decapitator 19143 | -2/Protoforge | Spotted Decapitator 19169 | -2/Protoforge | Found Cep. NT7 Matterbank 19172 | -2/Protoforge | Spotted V273-e 19172 | -2/Protoforge | Spotted V273-x 19172 | -2/Protoforge | Spotted V026-s 19172 | -2/Protoforge | Spotted V845-m 19178 | -2/Protoforge | Found Cep. Matter Streamer 19265 | -2/Protoforge | Found Cep. RG22 Armor 19288 | -2/Protoforge | Lost 5 allies 19361 | -2/Protoforge | Spotted Immortal 19361 | -2/Protoforge | Spotted Immortal 19408 | -2/Protoforge | Destroyed Immortal 19426 | -2/Protoforge | Destroyed Immortal 19449 | -2/Protoforge | Destroyed Decapitator 19463 | -2/Protoforge | Destroyed Decapitator 19467 | -2/Protoforge | Destroyed Decapitator 19470 | -2/Protoforge | Destroyed Decapitator 19586 | -2/Protoforge | Found Faulty Cep. Smart ZDS 19598 | -2/Protoforge | Found Faulty Cep. Smart ZDS 19719 | -2/Protoforge | Destroyed Immortal 19762 | -2/Protoforge | Destroyed Immortal 19789 | -2/Protoforge | Spotted Decapitator 20025 | -2/Protoforge | Spotted Decapitator 20025 | -2/Protoforge | Spotted Decapitator 20025 | -2/Protoforge | Spotted V150-u 20026 | -2/Protoforge | Spotted V636-i 20046 | -2/Protoforge | Destroyed Decapitator 20054 | -2/Protoforge | Destroyed Decapitator 20056 | -2/Protoforge | Destroyed Decapitator 20081 | -2/Protoforge | Found Cep. Antigrav Storage Unit 20090 | -2/Protoforge | Found Cep. Chromion Battery 20149 | -2/Protoforge | Found Faulty Cep. Gyrokinetic System 20333 | -2/Protoforge | Found Cep. Combat Aerolev Unit 20334 | -2/Protoforge | Found Faulty Cep. Gyrokinetic System 20336 | -2/Protoforge | Found Cep. Combat Aerolev Unit 20340 | -2/Protoforge | Found Cep. Combat Aerolev Unit 20380 | -2/Protoforge | Spotted Decapitator 20380 | -2/Protoforge | Spotted Decapitator 20380 | -2/Protoforge | Spotted Decapitator 20457 | -2/Protoforge | Spotted Immortal 20457 | -2/Protoforge | Spotted Immortal 20458 | -2/Protoforge | Spotted V871-m 20517 | -2/Protoforge | Destroyed Immortal 20533 | -2/Protoforge | Destroyed Immortal 20563 | -2/Protoforge | Spotted V114-t 20661 | -2/Protoforge | Found Exp. Core Analyzer 20684 | -2/Protoforge | Spotted Striker 20684 | -2/Protoforge | Spotted Striker 20714 | -2/Protoforge | Spotted Striker 20715 | -2/Protoforge | Spotted Striker 20716 | -2/Protoforge | Destroyed Striker 20724 | -2/Protoforge | Destroyed Striker 20818 | -2/Protoforge | Spotted V153-h 20832 | -2/Protoforge | Found Cep. XC Strikerail 20834 | -2/Protoforge | Found Cep. Miniperforator 20837 | -2/Protoforge | Found Exp. Jetlance 20842 | -2/Protoforge | Found Faulty Cep. Plasma Driver 20843 | -2/Protoforge | Found Cep. XC Strikerail 20847 | -2/Protoforge | Spotted V018-t 20852 | -2/Protoforge | Spotted V792-l 20895 | -2/Protoforge | Destroyed V792-l 20903 | -2/Protoforge | Destroyed V018-t 20909 | -2/Protoforge | Found Med. Regenerative Plating 20936 | -2/Protoforge | Found Cep. Plasma Driver 20938 | -2/Protoforge | Found Cep. Plasma Driver 20961 | -2/Protoforge | Found Faulty Cep. Miniperforator 21083 | -2/Protoforge | Destroyed Decapitator 21087 | -2/Protoforge | Destroyed Decapitator 21092 | -2/Protoforge | Destroyed Decapitator 21106 | -2/Protoforge | Found Cep. Reaction Jets 21113 | -2/Protoforge | Found Cep. Energy Mantle 21117 | -2/Protoforge | Found Faulty Cep. Energy Mantle 21227 | -2/Protoforge | Found Cep. Zero-point Core 21301 | -2/Protoforge | Spotted Decapitator 21301 | -2/Protoforge | Spotted Decapitator 21304 | -2/Protoforge | Core integrity fell below 50% 21305 | -2/Protoforge | Destroyed Decapitator 21343 | -2/Protoforge | Build established: Scavenger-Sprinter 21346 | -2/Protoforge | Spotted AP7-3 21346 | -2/Protoforge | Spotted AP7-3 21360 | -2/Protoforge | Found Mni. Quantum Capacitor 21395 | -2/Protoforge | System corruption reached 10% 21487 | -2/Protoforge | Destroyed AP7-3 21492 | -2/Protoforge | Destroyed AP7-3 21582 | -2/Protoforge | UFD reported confirmed Drillbomb installation 21619 | -2/Protoforge | Found Cep. Core Analysis Suite 21622 | -2/Protoforge | Found Faulty Cep. Thermoelectric Network 21624 | -2/Protoforge | Found Faulty Cep. Thermoelectric Network 21797 | -2/Protoforge | Found Faulty Mni. Quantum Capacitor 21926 | -2/Protoforge | Build established: Hacker-Sprinter 22063 | -2/Protoforge | Additional patrols dispatched to research labs 22066 | -2/Protoforge | Found Cep. Navigation Harness 22181 | -2/Protoforge | UFD reported confirmed Drillbomb installation 22195 | -2/Protoforge | Spotted Striker 22200 | -2/Protoforge | Spotted Striker 22201 | -2/Protoforge | Destroyed Striker 22215 | -2/Protoforge | Destroyed Striker 22272 | -2/Protoforge | Spotted Executioner 22272 | -2/Protoforge | Spotted 02F51-K 22360 | -2/Protoforge | Spotted Striker 22361 | -2/Protoforge | Destroyed Striker 22364 | -2/Protoforge | Spotted Striker 22435 | -2/Protoforge | Found Faulty Exp. Active Sensor Suite 22437 | -2/Protoforge | Found Faulty Exp. Active Sensor Suite 22531 | -2/Protoforge | Spotted Executioner 22565 | -2/Protoforge | Spotted Executioner 22566 | -2/Protoforge | Destroyed Executioner 22626 | -2/Protoforge | Destroyed Executioner 22626 | -2/Protoforge | Destroyed Executioner 22626 | -2/Protoforge | Destroyed Executioner 22653 | -2/Protoforge | Destroyed 7 combat bots 22661 | -2/Protoforge | Lost 4 allies 22664 | -2/Protoforge | Spotted Striker 22666 | -2/Protoforge | Spotted Striker 22670 | -2/Protoforge | Destroyed Striker 22707 | -2/Protoforge | Destroyed Executioner 22728 | -2/Protoforge | Destroyed 8 combat bots 22747 | -2/Protoforge | Lost 3 allies 22782 | -2/Protoforge | Spotted Executioner 22789 | -2/Protoforge | Destroyed Executioner 22800 | -2/Protoforge | Spotted Executioner 22801 | -2/Protoforge | Destroyed Executioner 22807 | -2/Protoforge | Destroyed Executioner 22820 | -2/Protoforge | Destroyed Executioner 22866 | -2/Protoforge | Destroyed Striker 22866 | -2/Protoforge | Spotted Executioner 22872 | -2/Protoforge | Lost 3 allies 22887 | -2/Protoforge | Destroyed 16 combat bots 22890 | -2/Protoforge | Destroyed Executioner 22913 | -2/Protoforge | Spotted Executioner 22916 | -2/Protoforge | Destroyed Executioner 22918 | -2/Protoforge | Build established: Hacker-Scout 22926 | -2/Protoforge | Destroyed Hotshot 22926 | -2/Protoforge | Destroyed Hotshot 22941 | -2/Protoforge | Spotted Striker 22955 | -2/Protoforge | Spotted Executioner 22955 | -2/Protoforge | Spotted Striker 22955 | -2/Protoforge | Spotted Striker 22970 | -2/Protoforge | UFD reported confirmed Drillbomb installation 23014 | -2/Protoforge | UFD reported confirmed Drillbomb installation 23021 | -2/Protoforge | Destroyed 11 combat bots 23024 | -2/Protoforge | Lost 8 allies 23042 | -2/Protoforge | Spotted Striker 23082 | -2/Protoforge | UFD reported confirmed Drillbomb installation 23099 | -2/Protoforge | Spotted Striker 23100 | -2/Protoforge | Spotted Executioner 23142 | -2/Protoforge | Spotted Striker 23146 | -2/Protoforge | Destroyed Striker 23187 | -2/Protoforge | Lost 5 allies 23190 | -2/Protoforge | Spotted Striker 23204 | -2/Protoforge | Destroyed Striker 23249 | -2/Protoforge | Spotted Executioner 23364 | -2/Protoforge | Destroyed Striker 23367 | -2/Protoforge | Spotted Striker 23368 | -2/Protoforge | Spotted Striker 23388 | -2/Protoforge | Destroyed Striker 23390 | -2/Protoforge | Destroyed Striker 23393 | -2/Protoforge | Destroyed Executioner 23426 | -2/Protoforge | Lost 6 allies 23426 | -2/Protoforge | Destroyed Executioner 23428 | -2/Protoforge | Destroyed Striker 23456 | -2/Protoforge | Destroyed 20 combat bots 23478 | -2/Protoforge | Spotted Striker 23478 | -2/Protoforge | Spotted Striker 23481 | -2/Protoforge | Destroyed Striker 23481 | -2/Protoforge | Spotted Executioner 23483 | -2/Protoforge | Spotted Striker 23485 | -2/Protoforge | Destroyed Striker 23489 | -2/Protoforge | Destroyed Striker 23530 | -2/Protoforge | Destroyed Striker 23533 | -2/Protoforge | Spotted Striker 23537 | -2/Protoforge | Destroyed Striker 23558 | -2/Protoforge | Destroyed 14 combat bots 23595 | -2/Protoforge | UFD reported confirmed Drillbomb installation 23651 | -2/Protoforge | Destroyed 8 combat bots 23696 | -2/Protoforge | Destroyed Striker 23698 | -2/Protoforge | Destroyed Executioner 23784 | -2/Protoforge | Spotted Executioner 23803 | -2/Protoforge | Destroyed Executioner 23803 | -2/Protoforge | Destroyed Executioner 23803 | -2/Protoforge | Destroyed Executioner 23804 | -2/Protoforge | UFD reported confirmed Drillbomb installation 23814 | -2/Protoforge | Destroyed Executioner 23835 | -2/Protoforge | Destroyed 9 combat bots 23839 | -2/Protoforge | Destroyed Striker 23839 | -2/Protoforge | Destroyed Executioner 23841 | -2/Protoforge | Lost 9 allies 23870 | -2/Protoforge | Destroyed Executioner 23872 | -2/Protoforge | Destroyed Striker 23872 | -2/Protoforge | Destroyed Executioner 23899 | -2/Protoforge | Destroyed 10 combat bots 23942 | -2/Protoforge | Destroyed Executioner 23950 | -2/Protoforge | Spotted Striker 23951 | -2/Protoforge | UFD reported confirmed Drillbomb installation 23954 | -2/Protoforge | Destroyed Striker 23991 | -2/Protoforge | Spotted Executioner 23991 | -2/Protoforge | Spotted Executioner 24000 | -2/Protoforge | P-80 Master assimilated allied 02FPZ-D 24011 | -2/Protoforge | Lost 3 allies 24035 | -2/Protoforge | Spotted Striker 24052 | -2/Protoforge | Destroyed Striker 24059 | -2/Protoforge | Destroyed Executioner 24065 | -2/Protoforge | Destroyed Executioner 24073 | -2/Protoforge | Destroyed Executioner 24096 | -2/Protoforge | Lost 5 allies 24101 | -2/Protoforge | Destroyed Executioner 24103 | -2/Protoforge | Destroyed Executioner 24124 | -2/Protoforge | Destroyed 17 combat bots 24143 | -2/Protoforge | Destroyed Executioner 24147 | -2/Protoforge | Destroyed Executioner 24153 | -2/Protoforge | Destroyed Executioner 24157 | -2/Protoforge | Spotted Striker 24171 | -2/Protoforge | Destroyed Executioner 24194 | -2/Protoforge | Destroyed 18 combat bots 24201 | -2/Protoforge | Lost 4 allies 24234 | -2/Protoforge | Spotted Executioner 24236 | -2/Protoforge | Destroyed Striker 24238 | -2/Protoforge | Spotted Striker 24238 | -2/Protoforge | Spotted Striker 24239 | -2/Protoforge | Destroyed Executioner 24242 | -2/Protoforge | Destroyed Striker 24242 | -2/Protoforge | Destroyed Striker 24251 | -2/Protoforge | UFD reported confirmed Drillbomb installation 24253 | -2/Protoforge | Crushed by falling debris 24254 | -2/Protoforge | Spotted Executioner 24254 | -2/Protoforge | Spotted Executioner 24263 | -2/Protoforge | Destroyed 9 combat bots 24290 | -2/Protoforge | Lost 9 allies 24313 | -2/Protoforge | Found Faulty Cep. Matter Streamer 24320 | -2/Protoforge | Found Faulty Cep. Matter Streamer 24353 | -2/Protoforge | UFD reported confirmed Drillbomb installation 24354 | -2/Protoforge | UFD began Drillbomb countdown 24380 | -2/Protoforge | Identified exit to Access 24382 | -2/Protoforge | Entered Access 24382 | -1/Access | Evolved 2 slots: Utility x2 24450 | -1/Access | High security lockdown imminent 24530 | -1/Access | High security lockdown engaged 24773 | -1/Access | Found Active Sensor Suite 24831 | -1/Access | Spotted B-99 Colossus 24849 | -1/Access | Spotted B-99 Colossus 25027 | -1/Access | Build established: Hacker-Ninja 25033 | -1/Access | Discovered new exit (range 3) 25034 | -1/Access | Identified exit to Surface 25054 | -1/Access | Spotted Striker 25054 | -1/Access | Spotted Executioner 25069 | -1/Access | Destroyed Executioner 25073 | -1/Access | Destroyed Striker 25125 | -1/Access | Spotted Executioner 25125 | -1/Access | Spotted Executioner 25125 | *** | Escaped! Last Messages --------------- 25068_ Plasma Slug penetrates Striker. 25069_ Destroyed Exp. Reaction Control System. 25069_ Executioner destroyed. 25070_ Overheating: Energy bleed (-8). 25073_ Plasma Slug penetrates Striker. 25073_ Striker destroyed. 25073_ Wheel melted. 25073_ M-36 Artificer destroyed. 25079_ Discarded Ghost Barrier. 25080_ Acquired 10 matter. 25082_ U-05 Engineer builds a Reinforced Barrier. 25112_ System corrupted: Matter fused (-10). 25112_ Acquired 10 matter. 25125_ C-45 Heavy ARC bursts open, deploying its payload. 25125_ Executioner unfolds itself. 25125_ P-80 Master unfolds itself. 25125_ Executioner unfolds itself. 25125_ I-47 Archangel unfolds itself. 25125_ I-47 Archangel distress signal jammed. [Achievement: Unfinished Business] Map ----- +----------------------------------------------------+ | ??????????????????????# # ## #????????? | | ??????????????????????# # ## #????????? | | ??????????????????????# #####+##### ##???????? | | ??????????????????????# #???????? | | ??????????????????????# #???????? | | ??????????????????????# +???????? | | ??????????????????????# #???????? | | ??????????????????????# ########## #???????? | | ??????????????????????# #????????# #???????? | | ??????????????????????# #????????# #???????? | | ????????????????????? ?????????# * +???????? | | ???????????????????? ?????????# % #???????? | | ????????????????????? ?????????# #???????? | | ???????????????????????? ?????????# #???????? | | ?????????????????????BB????BB???######+"########## | | ?????????????????????BB????BB???# ! # | | ????????????????????????????????# # | | ????????????????????????????????# " " # | | ????????????????????????????????# """ """ # | | ????????????????????????????????# """ """ # | | ???????????????????#""""""""""#?# " " # | | ???????????????????# #?# ! # | | ???????????????????#/!""" "" ### = # | | ???????????????????#%%" " ### /! # | | ???????????????????#=%"%=! #?#"##############/# | | ???????????????????#!!"!!@ " #?# #????#!%] #???? | | ???????????????????#!%!*%!= # # #????#=! #???? | | ???????????????????#=["!"[ " #?# #????# #???? | | ???????????????????#=* #?# #????# #???? | | ???????????????????# #?# #????# k #???? | | ???????????????????""""""""C "####?#### C #???? | | ???????????????????#"" p ##????# # #???? | | ???????????????????#"" E ##????# + #???? | | ???????????????????#"" Ei##???## # ! #???? | | ???????????????????#T %##???##% # #???? | | ???????????????????#"" #???# #= " #?? # | | ???????????????????#"" #???### # #? # | | ??????????????????##"" ####### #######[ | | ?????????????? k % u [[!!*%=! | | ?????????????CC p C pC %! != !!*= | | ?????????????################"############+### | | ????????????????????????????###????? ? ???? # | | ???????????????????????????????????? ?????? | | ???????????????????????????????????? " ????? | | ???????????????????????????????????? """ ????? | | ???????????????????????????????????? """ #???? | | ???????????????????????????????????? " #???? | | ???????????????????????????????????# ] #???? | | ???????????????????????????????????# #???? | | ???????????????????????????????????# " #???? | +----------------------------------------------------+ Best States ------------- Heat Dissipation 52 Energy Generation 61 Energy Capacity 1140 Matter Stores 300 Matter Capacity 300 Sight Range 23 Robot Scan Range 20 Terrain Scan Density 10 Jamming Range 16 Additional Mass Support 9 Armor Coverage 225 Point Defense Rating 80 Phase Shifting 15 Evasion (%) 80 Targeting Accuracy 30 Melee Accuracy 8 Core Analysis 12 Armor Integrity Analysis 50 Recoil Reduction 2 Offensive Hacking 38 Defensive Hacking 28 Authchip Count 1 Trap Extractor Capacity 6 Item Schematics ----------------- Adv. System Shield | -5/Factory | Hacked Enh. Optical Array | -3/Quarantine | Hacked Cld. Phase Gun | -2/Protoforge | Archive Imp. Matter Compressor | -2/Protoforge | Archive Cld. Gravmag System | -2/Protoforge | Archive Diametric Drive | -2/Protoforge | Archive Imp. Diametric Drive | -2/Protoforge | Archive Imp. Quantum Reactor | -2/Protoforge | Archive Imp. Lightning Gun | -2/Protoforge | Archive Exp. Focal Shield | -2/Protoforge | Archive Enh. Multireflex Exoskeleton | -2/Protoforge | Archive Robot Schematics ------------------ G-73 Enforcer | -2/Protoforge | Archive T-07 Excavator | -2/Protoforge | Archive R-06 Scavenger | -2/Protoforge | Archive Fabricated ------------ Adv. System Shield | x1 | -5/Factory | Authchip Repaired ---------- Cld. Nuclear Pulse Thruster | 48% | -5/Factory Grenade Launcher | 13% | -5/Factory Adv. Sensor Array | 25% | -5/Factory Lance | 40% | -4/Factory Mic. Antimatter Reactor | 32% | -3/Quarantine Cld. Nuclear Pulse Thruster | 34% | -2/Research Studied --------- Nuclear Pulse Array | -5/Factory | Hacked Lgt. Deuterium Engine | -5/Factory | Hacked Mic. Fission Core | -5/Factory | Hacked Hvy. Plasma Cannon | -5/Factory | Hacked Power Maul | -5/Factory | Hacked Lance | -5/Factory | Hacked Neutrino Core | -5/Factory | Hacked Hyp. Gauss Cannon | -5/Factory | Hacked Grenade Launcher | -5/Factory | Hacked Field Propulsion Array | -4/Factory | Hacked Mic. Antimatter Reactor | -3/Research | Hacked Impulse Thruster Array | -2/Research | Hacked Nova Cannon | -2/Research | Hacked Hyp. Mass Driver | -2/Testing | Hacked Alien Tech Used ----------------- High-powered Transdimensional Reconstructor Dimensional Node Initializer Subatomic Replicator Supercharged TR Achievements -------------- Definitely A Prototype I'm Outta Here, Maybe Not Immortal After All Power Plant Red Leader Unfinished Business Challenges ------------ None Game ------ Seed MatterTerrabombShell Manual? 0 Play Time 05:21:55 Cumulative 1603.4 hours Start 2026.02.12 @ 20:09:05 End 2026.02.13 @ 01:51:42 Sessions 1 Manual Loads 0 Difficulty Rogue Special Mode None Game No. 1144 Rogue 1104 Adventurer 40 Explorer 0 Win Type 0 Total 204 Types 89/11/74/2/2/4/16/2/1/3 Lore% 97 Gallery% 95 Achievement% 81 Wizard Run 0 Options --------- Layout 0 ASCII 0 Keyboard 0 Movement Numpad Keybinds 0 Fullscreen 0 Font 20/Terminus Map View 76x50 Zoom Use 0% Tactical HUD 1 Map Filters NONE Filters NONE Steam 1 RUN: 0768c4a4-d5e9-40f5-9ab2-22693c17c5ed